Workbook

Sheet 公示
A1: 附件
A2: 桂林市检察机关2025年度拟录用公务员名单（共9人）
A3: 序号 | B3: 招录机关名称 | C3: 用人单位 | D3: 职位名称 | E3: 职位代码 | F3: 姓名 | G3: 性别 | H3: 民族 | I3: 准考证号 | J3: 工作单位或 毕业院校 | K3: 行政职业能力测验成绩 | L3: 申论 成绩 | M3: 少数民族照顾加分 | N3: 笔试总成绩 | O3: 面试成绩 | P3: 综合成绩（=笔试总成绩×50%+面试成绩）
A4: 1 | B4: 桂林市人民检察院 | C4: 桂林市人民检察院 | D4: 司法警察职位 | E4: 45030025 | F4: 周洁 | G4: 女 | H4: 侗族 | I4: =VLOOKUP(F4,[1]考察名单!$B$2:$E$9,4,0) -> 31030103015 | J4: 龙胜各族自治县泗水乡乡村建设综合保障中心 | K4: =VLOOKUP(F4,[1]考察名单!$B$2:$L$9,11,0) -> 65 | L4: =VLOOKUP(F4,[1]考察名单!$B$2:$M$9,12,0) -> 64 | M4: =VLOOKUP(F4,[1]考察名单!$B$2:$O$9,14,0) -> 3 | N4: =VLOOKUP(F4,[1]考察名单!$B$2:$P$9,15,0) -> 132 | O4: =VLOOKUP(F4,[1]考察名单!$B$2:$Q$9,16,0) -> 80.6 | P4: =VLOOKUP(F4,[1]考察名单!$B$2:$R$9,17,0) -> 146.60
A5: 2 | B5: 桂林市人民检察院 | C5: 桂林市人民检察院及基层人民检察院 | D5: 司法警察职位 | E5: 45030026 | F5: 阳科 | G5: 男 | H5: 汉族 | I5: =VLOOKUP(F5,[1]考察名单!$B$2:$E$9,4,0) -> 31030103202 | J5: 金秀瑶族自治县电子商务服务中心 | K5: =VLOOKUP(F5,[1]考察名单!$B$2:$L$9,11,0) -> 62.5 | L5: =VLOOKUP(F5,[1]考察名单!$B$2:$M$9,12,0) -> 70.5 | M5: =VLOOKUP(F5,[1]考察名单!$B$2:$O$9,14,0) -> 0 | N5: =VLOOKUP(F5,[1]考察名单!$B$2:$P$9,15,0) -> 133 | O5: =VLOOKUP(F5,[1]考察名单!$B$2:$Q$9,16,0) -> 85 | P5: =VLOOKUP(F5,[1]考察名单!$B$2:$R$9,17,0) -> 151.50
A6: 3 | B6: 桂林市人民检察院 | C6: 桂林市人民检察院及基层人民检察院 | D6: 司法警察职位 | E6: 45030026 | F6: 丘宇 | G6: 男 | H6: 汉族 | I6: 31030103022 | J6: 桂林市七星区人民检察院 | K6: 70.2 | L6: 60 | M6: 0 | N6: 130.2 | O6: 83.3 | P6: 148.40
A7: 4 | B7: 桂林市人民检察院 | C7: 桂林市基层人民检察院 | D7: 司法行政职位一 | E7: 45030027 | F7: 唐雨灿 | G7: 女 | H7: 汉族 | I7: =VLOOKUP(F7,[1]考察名单!$B$2:$E$9,4,0) -> 21030301226 | J7: 黑龙江大学 | K7: =VLOOKUP(F7,[1]考察名单!$B$2:$L$9,11,0) -> 74.4 | L7: =VLOOKUP(F7,[1]考察名单!$B$2:$M$9,12,0) -> 74 | M7: =VLOOKUP(F7,[1]考察名单!$B$2:$O$9,14,0) -> 0 | N7: =VLOOKUP(F7,[1]考察名单!$B$2:$P$9,15,0) -> 148.4 | O7: =VLOOKUP(F7,[1]考察名单!$B$2:$Q$9,16,0) -> 80.8 | P7: =VLOOKUP(F7,[1]考察名单!$B$2:$R$9,17,0) -> 155.00
A8: 5 | B8: 桂林市人民检察院 | C8: 桂林市基层人民检察院 | D8: 司法行政职位一 | E8: 45030027 | F8: 邝思薇 | G8: 女 | H8: 汉族 | I8: =VLOOKUP(F8,[1]考察名单!$B$2:$E$9,4,0) -> 21030301729 | J8: 永福县城市管理监督局 | K8: =VLOOKUP(F8,[1]考察名单!$B$2:$L$9,11,0) -> 69.9 | L8: =VLOOKUP(F8,[1]考察名单!$B$2:$M$9,12,0) -> 71.5 | M8: =VLOOKUP(F8,[1]考察名单!$B$2:$O$9,14,0) -> 0 | N8: =VLOOKUP(F8,[1]考察名单!$B$2:$P$9,15,0) -> 141.4 | O8: =VLOOKUP(F8,[1]考察名单!$B$2:$Q$9,16,0) -> 79.9 | P8: =VLOOKUP(F8,[1]考察名单!$B$2:$R$9,17,0) -> 150.60
A9: 6 | B9: 桂林市人民检察院 | C9: 桂林市基层人民检察院 | D9: 司法行政职位一 | E9: 45030027 | F9: 巫镇初 | G9: 男 | H9: 汉族 | I9: =VLOOKUP(F9,[1]考察名单!$B$2:$E$9,4,0) -> 21030301621 | J9: 武汉大学 | K9: =VLOOKUP(F9,[1]考察名单!$B$2:$L$9,11,0) -> 75.1 | L9: =VLOOKUP(F9,[1]考察名单!$B$2:$M$9,12,0) -> 65 | M9: =VLOOKUP(F9,[1]考察名单!$B$2:$O$9,14,0) -> 0 | N9: =VLOOKUP(F9,[1]考察名单!$B$2:$P$9,15,0) -> 140.1 | O9: =VLOOKUP(F9,[1]考察名单!$B$2:$Q$9,16,0) -> 79.7 | P9: =VLOOKUP(F9,[1]考察名单!$B$2:$R$9,17,0) -> 149.75
A10: 7 | B10: 桂林市人民检察院 | C10: 桂林市基层人民检察院 | D10: 司法行政职位二 | E10: 45030028 | F10: 李玲 | G10: 女 | H10: 汉族 | I10: =VLOOKUP(F10,[1]考察名单!$B$2:$E$9,4,0) -> 21030300718 | J10: 广西职业师范学院 | K10: =VLOOKUP(F10,[1]考察名单!$B$2:$L$9,11,0) -> 74.1 | L10: =VLOOKUP(F10,[1]考察名单!$B$2:$M$9,12,0) -> 70 | M10: =VLOOKUP(F10,[1]考察名单!$B$2:$O$9,14,0) -> 0 | N10: =VLOOKUP(F10,[1]考察名单!$B$2:$P$9,15,0) -> 144.1 | O10: =VLOOKUP(F10,[1]考察名单!$B$2:$Q$9,16,0) -> 84.4 | P10: =VLOOKUP(F10,[1]考察名单!$B$2:$R$9,17,0) -> 156.45
A11: 8 | B11: 桂林市人民检察院 | C11: 桂林市基层人民检察院 | D11: 司法行政职位二 | E11: 45030028 | F11: 马丽莎 | G11: 女 | H11: 满族 | I11: =VLOOKUP(F11,[1]考察名单!$B$2:$E$9,4,0) -> 21030301427 | J11: 容县人大信息和代表履职服务中心 | K11: =VLOOKUP(F11,[1]考察名单!$B$2:$L$9,11,0) -> 67.4 | L11: =VLOOKUP(F11,[1]考察名单!$B$2:$M$9,12,0) -> 66 | M11: =VLOOKUP(F11,[1]考察名单!$B$2:$O$9,14,0) -> 3 | N11: =VLOOKUP(F11,[1]考察名单!$B$2:$P$9,15,0) -> 136.4 | O11: =VLOOKUP(F11,[1]考察名单!$B$2:$Q$9,16,0) -> 82.1 | P11: =VLOOKUP(F11,[1]考察名单!$B$2:$R$9,17,0) -> 150.30
A12: 9 | B12: 桂林市人民检察院 | C12: 桂林市基层人民检察院 | D12: 司法行政职位二 | E12: 45030028 | F12: 林曦 | G12: 女 | H12: 汉族 | I12: =VLOOKUP(F12,[1]考察名单!$B$2:$E$9,4,0) -> 21030301306 | J12: 桂林市疾病预防控制中心 | K12: =VLOOKUP(F12,[1]考察名单!$B$2:$L$9,11,0) -> 71.5 | L12: =VLOOKUP(F12,[1]考察名单!$B$2:$M$9,12,0) -> 62.5 | M12: =VLOOKUP(F12,[1]考察名单!$B$2:$O$9,14,0) -> 0 | N12: =VLOOKUP(F12,[1]考察名单!$B$2:$P$9,15,0) -> 134 | O12: =VLOOKUP(F12,[1]考察名单!$B$2:$Q$9,16,0) -> 82.1 | P12: =VLOOKUP(F12,[1]考察名单!$B$2:$R$9,17,0) -> 149.10
